bitfinex-derivatives/quotes_ETHF0:USTF0_20260131
["timestamp","ask_amount","ask_price","bid_price","bid_amount"]
[1769902161250,3.74844808,2455.3,2453.2,2.05165904]
[1769902161651,0.20397,2454.4,2453.2,2.05165904]
[1769902163651,3.74844808,2455.3,2453.2,2.05165904]
[1769902163851,3.67751843,2455.3,2453.4,1.95812401]
[1769902164047,0.20394,2454.8,2453.4,1.95812401]
[1769902164956,3.67751843,2455.3,2453.4,1.95812401]
[1769902164957,0.20392,2455.0,2453.4,1.95812401]
[1769902165153,0.20392,2455.0,2453.6,1.95862567]
[1769902165455,0.20393,2454.9,2453.7,1.95862567]
[1769902166951,0.00451843,2455.3,2454.0,1.85732776]
[1769902167157,0.2039,2455.2,2454.1,1.85732776]
[1769902167754,3.671,2456.4,2454.2,1.75309342]
[1769902168059,3.671,2456.4,2454.3,1.75309342]
[1769902168060,0.20386,2455.7,2454.3,1.75309342]
[1769902168265,0.20386,2455.7,2454.5,1.75309342]
[1769902168449,4.03415255,2456.4,2454.7,1.75309342]
[1769902168652,0.20382,2456.1,2454.7,1.75309342]
[1769902168853,3.671,2456.4,2454.7,1.96004137]
[1769902169053,3.671,2456.4,2454.9,1.74319541]
[1769902169248,0.20378,2456.7,2454.9,1.94711541]
[1769902169553,0.43432837,2457.7,2455.5,1.74319541]
[1769902169755,0.20379,2456.6,2455.5,1.74319541]
[1769902170156,0.43432837,2457.5,2455.5,1.74319541]
[1769902170458,0.20376,2456.9,2455.7,1.74319541]
[1769902170656,0.42072188,2457.6,2455.7,1.74319541]
[1769902170954,0.20377,2456.8,2455.7,1.74319541]
[1769902171754,0.20377,2456.8,2455.8,1.74319541]
[1769902171955,0.36256503,2457.7,2455.8,1.74319541]
[1769902173259,0.20373,2457.3,2455.8,1.74319541]
[1769902173559,0.00428172,2457.7,2455.8,1.74319541]
[1769902173854,0.20377,2456.8,2455.8,1.74319541]
[1769902175549,0.20378,2456.7,2455.8,1.74319541]
[1769902175955,0.20373,2457.3,2455.8,1.74319541]
[1769902178257,0.3575994,2457.7,2455.8,1.74319541]
[1769902178258,1.17555156,2457.7,2455.8,1.74319541]
[1769902178462,0.20379,2456.5,2455.4,1.64235122]
[1769902179057,0.81827691,2456.8,2455.4,1.64235122]
[1769902179251,0.20382,2456.2,2455.4,1.64235122]
[1769902179856,0.20387,2455.6,2455.0,1.64235122]
[1769902180062,0.20388,2455.5,2455.0,1.64235122]
[1769902180761,0.20389,2455.3,2454.7,0.00300795]
[1769902181357,0.20389,2455.3,2454.3,1.64235122]
[1769902181563,14.61920995,2459.1,2454.9,1.56433202]
[1769902181564,1.01878054,2457.1,2454.9,1.56433202]
[1769902181763,1.01878054,2457.1,2455.1,1.56433202]
[1769902182165,1.02753544,2456.9,2455.1,1.56433202]
[1769902182356,0.20379,2456.6,2455.1,3.91691365]
[1769902182561,0.20686998,2456.6,2455.2,1.56433202]
[1769902182963,0.20686998,2456.6,2455.4,1.56433202]
[1769902183163,0.20686998,2456.6,2455.5,1.56433202]
[1769902183364,0.00307998,2456.6,2455.5,1.56433202]
[1769902183661,0.00307998,2456.6,2455.6,3.91691365]
[1769902183865,0.20374,2457.2,2455.9,1.56433202]
[1769902184866,0.20853945,2457.2,2455.9,1.56433202]
[1769902185569,0.20853945,2457.2,2456.0,1.56433202]
[1769902186768,0.20376,2456.9,2455.7,1.56433202]
[1769902186964,1.02814286,2456.9,2455.7,1.56433202]
[1769902187168,1.02814286,2456.9,2455.5,1.56433202]
[1769902187169,0.20379,2456.5,2455.5,1.56433202]
[1769902188462,1.01719473,2456.7,2455.5,1.56433202]
[1769902188768,0.20383,2456.1,2455.2,1.56433202]
[1769902189069,0.20383,2456.1,2455.3,6.28012651]
[1769902189269,0.20383,2456.1,2455.4,1.56433202]
[1769902189861,0.00479945,2457.2,2455.2,1.56433202]
[1769902189862,0.20383,2456.0,2455.2,1.56433202]
[1769902190067,0.20082205,2456.0,2455.3,1.56433202]
[1769902190568,0.20082205,2456.0,2455.5,1.56433202]
[1769902190774,0.20082205,2456.0,2455.4,4.72041196]
[1769902191074,0.20082205,2456.0,2455.3,1.56433202]
[1769902191470,0.20082205,2456.0,2455.3,3.89457925]
[1769902191670,0.20386,2455.8,2455.1,2.33337392]
[1769902191967,0.20386,2455.8,2455.1,0.00312669]
[1769902192173,0.20387,2455.6,2455.1,0.00312669]
[1769902192976,0.20387,2455.6,2455.1,1.56745871]
[1769902193872,0.9638585,2456.7,2455.1,1.56745871]
[1769902194075,0.9638585,2456.7,2455.5,3.89457925]
[1769902194278,3.668,2456.8,2455.2,2.33024723]
[1769902194474,0.20387,2455.6,2455.1,2.33337392]
[1769902194675,0.00973545,2456.2,2455.1,0.00312669]
[1769902195073,0.00973545,2456.1,2455.1,0.00312669]
[1769902195577,0.20386,2455.7,2455.1,0.00312669]
[1769902195871,0.00973545,2456.1,2455.1,0.00312669]
[1769902195872,0.20388,2455.4,2455.1,0.00312669]
[1769902196077,0.00388184,2455.4,2455.1,1.72164006]
[1769902196273,2.39,2456.6,2455.1,1.72164006]
[1769902196274,0.20384,2455.9,2455.1,1.72164006]
[1769902196873,0.20385,2455.8,2455.1,1.72164006]
[1769902197078,0.20386,2455.7,2455.1,1.72164006]
[1769902197274,0.20859132,2455.7,2455.1,1.72164006]
[1769902199082,0.20859132,2455.7,2455.2,1.72436093]
[1769902199582,0.20388,2455.5,2455.1,0.00312669]
[1769902200377,0.20393,2454.8,2454.5,2.33024723]
[1769902200578,0.20389,2455.3,2454.4,1.71658138]
[1769902200784,0.20389,2455.3,2454.6,1.71658138]
[1769902201083,0.2039,2455.2,2454.6,1.71658138]
[1769902201279,0.20859132,2455.7,2454.7,1.71658138]
[1769902201479,0.20387,2455.6,2454.7,1.72168172]
[1769902201680,0.20388,2455.4,2454.9,1.71612673]
[1769902201878,0.20393,2454.9,2454.7,3.4e-07]
[1769902202186,0.20393,2454.9,2453.9,5.8046998]
[1769902202187,0.20398,2454.3,2453.7,1.71612673]
[1769902202379,0.20399,2454.1,2453.4,1.71612673]
[1769902202775,0.204,2454.1,2453.3,1.71613805]
[1769902203082,0.204,2454.1,2453.3,1.72001612]
[1769902203284,0.20394,2454.7,2453.7,1.71613805]
[1769902203482,3.669,2455.0,2453.9,1.71705343]
[1769902203685,0.20389,2455.3,2454.2,1.71705343]
[1769902203874,0.20385,2455.8,2454.6,1.71705343]
[1769902204281,3.669,2456.3,2455.0,1.71705343]
[1769902204479,1.576642,2455.7,2454.2,3.52024184]
[1769902204677,1.576642,2455.7,2453.7,5.8046998]
[1769902204678,0.20392,2454.9,2453.7,3.52024184]
[1769902205080,0.20392,2454.9,2453.6,3.52024184]
[1769902205283,0.20392,2454.9,2454.0,2.3468303]
[1769902205478,0.20393,2454.8,2453.7,5.86707214]
[1769902205681,0.20393,2454.8,2453.6,3.52024184]
[1769902205882,0.20398,2454.3,2453.3,0.00387807]
[1769902206180,0.20393,2454.9,2453.7,2.3468303]
[1769902206380,1.57191068,2455.1,2453.5,1.56433202]
[1769902206683,1.57191068,2454.9,2453.5,1.56433202]
[1769902207283,1.67567909,2454.7,2453.3,0.00387807]
[1769902207478,0.20399,2454.2,2453.3,1.8011651]
[1769902207678,0.20399,2454.2,2453.5,1.79728703]
[1769902207881,0.20399,2454.1,2453.5,1.79728703]
[1769902208085,0.20399,2454.1,2453.5,2.3468303]
[1769902208382,3.669,2455.2,2453.3,0.00387807]
[1769902208383,1.67567909,2454.2,2453.3,0.00387807]
[1769902208591,1.67567909,2454.0,2452.9,1.79728703]
[1769902208784,0.20403,2453.6,2452.4,1.79728703]
[1769902208988,0.20403,2453.6,2452.5,1.79728703]
[1769902209284,0.20404,2453.5,2452.6,4.14411733]
[1769902209486,0.20769109,2453.5,2452.6,1.80071685]
[1769902209790,0.20769109,2453.5,2452.9,1.79728703]
[1769902209998,0.20769109,2453.5,2453.1,1.79728703]
[1769902210197,0.20769109,2453.5,2452.9,2.3468303]
[1769902210392,0.20769109,2453.5,2453.1,4.14411733]
[1769902210698,0.20769109,2453.5,2452.9,2.3468303]
[1769902211098,0.20769109,2453.5,2453.0,4.14411733]
[1769902211295,0.20399,2454.1,2453.0,1.79728703]
[1769902211701,0.20399,2454.1,2453.1,1.79728703]
[1769902211900,0.20399,2454.1,2453.3,1.79728703]
[1769902212497,0.204,2454.0,2453.3,1.79728703]
[1769902213201,0.204,2454.0,2453.4,2.3468303]
[1769902213494,0.20401,2453.9,2453.4,2.3468303]
[1769902213697,0.20401,2453.9,2453.3,1.79728703]
[1769902213698,0.20401,2453.9,2452.7,1.79728703]
[1769902213902,0.20401,2453.9,2452.9,1.79728703]
[1769902214303,0.20401,2453.9,2452.6,0.00342982]
[1769902214304,0.20401,2453.9,2453.0,4.14411733]
[1769902214501,0.00523786,2454.1,2453.0,1.79728703]
[1769902214698,1.56850768,2454.1,2453.0,1.79728703]
[1769902214901,1.56850768,2454.1,2452.6,0.00342982]
[1769902214902,0.20406,2453.3,2452.6,1.80071685]
[1769902215199,1.56850768,2454.1,2452.2,1.79728703]
[1769902215200,0.20408,2453.0,2452.2,1.79728703]
[1769902215398,0.20404,2453.5,2452.2,1.79728703]
[1769902215598,0.20404,2453.5,2452.6,1.79728703]
[1769902215799,0.20408,2453.0,2452.3,1.79728703]
[1769902216304,0.20408,2453.0,2452.4,2.3468303]
[1769902216694,0.20408,2453.0,2452.5,4.14411733]
[1769902216899,0.20405,2453.4,2452.8,2.3468303]
[1769902217098,0.20405,2453.4,2452.6,1.79728703]
[1769902217298,0.20405,2453.4,2452.7,2.3468303]
[1769902217694,0.20405,2453.4,2452.6,1.79728703]
[1769902218205,1.42850184,2453.7,2452.6,1.79728703]
[1769902218405,0.20407,2453.2,2452.6,1.79728703]
[1769902218805,0.20407,2453.2,2452.8,1.79728703]
[1769902219205,0.20407,2453.2,2452.8,4.14411733]
[1769902219406,0.20403,2453.7,2452.9,4.14411733]
[1769902219606,0.20403,2453.6,2452.9,1.79728703]
[1769902220102,1.33590675,2453.9,2452.9,1.79728703]
[1769902220501,1.33590675,2453.9,2452.3,0.00416984]
[1769902220704,0.20408,2453.1,2452.6,1.79728703]
[1769902220905,1.28905988,2453.7,2452.3,1.80145687]
[1769902220906,0.20409,2453.0,2452.3,1.80145687]
[1769902221309,0.20409,2453.0,2452.6,2.3468303]
[1769902221609,0.20409,2453.0,2452.7,2.3468303]
[1769902221805,0.20409,2453.0,2452.6,4.14411733]
[1769902222304,4.88238618,2454.0,2452.9,1.9214303]
[1769902222506,1.21138618,2453.3,2452.3,0.00416984]
[1769902222713,2.49238383,2453.6,2451.2,3.671]
[1769902222714,1.59946613,2452.9,2451.2,3.671]
[1769902223010,0.20415,2452.2,2451.2,3.671]
[1769902223310,0.20415,2452.2,2451.4,1.9214303]
[1769902223510,0.20415,2452.2,2451.7,1.9214303]
[1769902223709,0.20738296,2452.2,2451.7,1.9214303]
[1769902224010,0.20738296,2452.2,2451.9,1.9214303]
[1769902224205,0.20738296,2452.2,2451.7,1.9214303]
[1769902224608,0.20738296,2452.2,2451.9,1.9214303]
[1769902224808,0.20738296,2452.2,2451.8,1.79728703]
[1769902225005,0.20738296,2452.2,2452.0,1.9214303]
[1769902225501,0.20738296,2452.2,2452.1,1.9214303]
[1769902225705,0.20738296,2452.2,2452.0,1.9214303]
[1769902226210,0.20738296,2452.2,2451.8,1.79728703]
[1769902226407,1.95738296,2452.2,2451.8,1.79728703]
[1769902228208,1.95738296,2452.2,2451.3,1.79728703]
[1769902228209,0.20418,2451.9,2451.3,1.79728703]
[1769902228409,0.20419,2451.7,2451.2,1.8024446]
[1769902228610,1.75323296,2452.2,2451.2,1.8024446]
[1769902229015,0.2042,2451.6,2451.2,1.8024446]
[1769902229507,0.20421,2451.5,2450.7,0.56356494]
[1769902229708,1.67567909,2451.5,2450.5,0.56409941]
[1769902230008,0.20426,2450.9,2450.2,0.56409941]
[1769902230312,0.20426,2450.9,2450.0,0.56385684]
[1769902230513,0.20426,2450.9,2450.0,0.00383858]
[1769902231110,0.56270359,2450.9,2450.0,0.00383858]
[1769902231507,0.56270359,2450.9,2450.0,1.80112561]
[1769902231714,0.20428,2450.7,2450.0,0.00383858]
[1769902232017,0.20428,2450.7,2450.0,1.80112561]
[1769902232614,0.20423,2451.3,2450.0,1.80112561]
[1769902232815,0.34870185,2451.3,2450.0,1.80112561]
[1769902233414,0.20422,2451.4,2450.0,1.80112561]
[1769902233617,1.67567909,2452.0,2450.1,1.79666889]
[1769902233809,2.02589519,2452.0,2450.1,1.79666889]
[1769902234212,2.02589519,2452.0,2450.2,1.79666889]
[1769902234413,0.20421,2451.5,2450.2,1.79666889]
[1769902234814,2.02589519,2452.0,2450.2,1.79666889]
[1769902235009,0.20421,2451.5,2450.2,1.79666889]
[1769902235214,0.20421,2451.5,2450.2,3.52024184]
[1769902235613,3.674,2452.4,2450.4,3.52024184]
[1769902235614,1.87985909,2451.8,2450.4,3.52024184]
[1769902235811,0.20419,2451.7,2450.4,3.52024184]
[1769902236214,0.20419,2451.7,2450.5,3.52024184]
[1769902236717,0.20419,2451.7,2450.4,3.52024184]
[1769902237109,0.35704787,2452.0,2450.1,3.52024184]
[1769902237110,1.56442463,2451.2,2450.1,3.52024184]
[1769902237316,1.56443463,2451.1,2450.0,0.00383858]
[1769902238113,1.36019463,2451.1,2450.0,0.00383858]
[1769902238414,1.56411974,2450.6,2450.0,0.00383858]
[1769902238719,1.35948856,2450.4,2449.8,3.674]
[1769902239313,0.20429,2450.5,2449.8,3.674]
[1769902239716,0.2083296,2450.5,2449.8,3.67895792]
[1769902240522,1.56796101,2450.5,2449.8,3.67895792]
[1769902241422,1.36367101,2450.5,2449.8,3.67895792]
[1769902241620,0.0040396,2450.5,2449.8,3.67895792]
[1769902242120,1.36425046,2450.3,2449.5,4.40269252]
[1769902242317,0.0040396,2450.5,2449.6,4.40269252]
[1769902242516,0.0040396,2450.5,2449.5,4.40269252]
[1769902242716,0.0040396,2450.5,2449.6,4.40269252]
[1769902242917,1.36772969,2450.5,2449.5,4.40269252]
[1769902243117,1.36772969,2450.5,2449.5,4.40798283]
[1769902243318,1.36369009,2450.3,2449.5,0.00529031]
[1769902243718,1.36369009,2450.3,2449.5,4.40798283]
[1769902244025,1.36369009,2450.3,2449.5,0.00529031]
[1769902244220,1.36770471,2450.1,2449.6,4.40269252]
[1769902244421,0.20433,2450.0,2449.5,0.00529031]
[1769902244616,0.20437,2449.6,2449.2,0.57185264]
[1769902244825,0.20435,2449.9,2448.6,0.33974814]
[1769902245024,0.20435,2449.8,2448.8,4.0816]
[1769902245221,0.20437,2449.6,2448.6,0.33974814]
[1769902245529,0.20437,2449.6,2447.7,6.92182059]
[1769902245530,25.729,2452.8,2449.7,0.38154303]
[1769902245820,0.20423,2451.3,2450.1,0.38154303]
[1769902246326,1.00128787,2451.8,2450.5,4.46314303]
[1769902246524,1.0057907,2451.8,2450.5,0.38590543]
[1769902246717,0.00450283,2451.8,2450.8,0.32887718]
[1769902246922,0.00450283,2451.8,2451.0,0.32887718]
[1769902247529,0.00450283,2451.8,2451.1,4.0816]
[1769902248024,0.2042,2451.6,2450.4,3.51538157]
[1769902248329,0.20415,2452.2,2451.2,0.27610742]
[1769902248718,2.395,2452.8,2451.8,4.0816]
[1769902248719,1.00128787,2452.8,2451.8,4.0816]
[1769902248920,1.00128787,2452.7,2451.5,0.22434989]
[1769902249327,0.00457049,2452.7,2451.9,4.30594989]
[1769902249727,1.00128787,2453.0,2452.1,4.0816]
[1769902249929,1.20534787,2453.3,2452.1,4.0816]
[1769902250125,1.20534787,2453.3,2452.1,0.13308087]
[1769902250326,1.20534787,2453.3,2452.2,4.0816]
[1769902250627,1.00128787,2452.7,2451.7,3.51538157]
[1769902250835,1.20539787,2452.7,2451.5,3.56258442]
[1769902251023,1.00128787,2453.2,2452.0,4.0816]
[1769902251332,0.00314502,2453.3,2451.5,3.51538157]
[1769902251333,1.00128787,2453.0,2451.5,3.51538157]
[1769902251525,1.20536787,2453.0,2451.4,3.56258442]
[1769902251723,1.20536787,2453.0,2451.5,4.0816]
[1769902251930,1.20536787,2453.0,2451.6,4.0816]
[1769902252128,1.00128787,2452.6,2451.3,3.51538157]
[1769902252322,1.00128787,2452.4,2451.0,3.51538157]
[1769902252522,1.00128787,2452.4,2451.0,7.59698157]
[1769902252722,1.00128787,2452.4,2451.0,4.0816]
[1769902252930,1.20541787,2452.4,2450.9,3.51538157]
[1769902253130,1.00128787,2453.2,2451.4,4.0816]
[1769902253326,1.00128787,2452.8,2451.2,3.51538157]
[1769902253527,1.20538787,2452.8,2451.2,3.51538157]
[1769902253723,1.20538787,2452.8,2451.4,4.0816]
[1769902253929,1.00128787,2452.6,2451.4,4.0816]
[1769902254129,1.00128787,2452.4,2451.2,3.51538157]
[1769902254331,1.00128787,2452.4,2451.0,7.39638157]
[1769902254531,1.00128787,2452.4,2451.4,4.0816]
[1769902254830,1.00128787,2451.9,2450.9,3.881]
[1769902255231,1.00128787,2451.9,2451.2,4.0816]
[1769902255536,1.00128787,2452.3,2451.5,4.0816]
[1769902255733,1.00128787,2452.3,2450.9,3.881]
[1769902255734,0.20412,2452.5,2451.1,7.59698157]
[1769902255936,0.20413,2452.4,2451.2,4.0816]
[1769902256239,1.00128787,2452.3,2451.1,7.59698157]
[1769902256438,1.20542787,2452.3,2451.2,4.0816]
[1769902256840,1.20542787,2452.3,2451.3,4.0816]
[1769902257037,1.20542787,2452.3,2451.1,4.0816]
[1769902257235,1.00128787,2451.9,2451.0,4.0816]
[1769902257437,1.00128787,2451.9,2450.9,3.881]
[1769902257631,1.00128787,2451.9,2451.1,4.0816]
[1769902258033,1.20545787,2451.9,2451.1,4.0816]
[1769902258232,1.20545787,2451.9,2451.2,4.0816]
[1769902258538,1.20545787,2451.9,2451.1,4.0816]
[1769902258745,1.20545787,2451.9,2451.2,4.0816]
[1769902259136,1.20545787,2451.9,2451.3,4.0816]
[1769902259436,1.20545787,2451.9,2451.2,4.0816]
[1769902259639,1.20545787,2451.9,2451.1,4.0816]
[1769902260039,1.20545787,2451.9,2451.3,4.0816]
[1769902260231,1.20545787,2451.9,2451.1,4.0816]
[1769902260433,1.00128787,2451.3,2450.7,4.41215001]
[1769902260737,1.00128787,2451.1,2450.5,0.0043624]
[1769902261238,0.20426,2450.9,2449.9,12.04663782]
[1769902261440,0.00522388,2451.3,2450.7,4.0816]
[1769902261639,1.00128787,2451.9,2450.5,3.51538157]
[1769902261842,1.00128787,2451.9,2450.6,3.51538157]
[1769902262044,1.20545787,2451.9,2451.0,4.0816]
[1769902262243,1.00128787,2451.7,2450.9,4.0816]
[1769902262444,1.00128787,2451.4,2450.7,3.884]
[1769902262739,1.00128787,2451.2,2450.7,0.00294945]
[1769902262940,1.00128787,2450.7,2450.1,2.3444856]
[1769902263141,1.00128787,2450.7,2449.9,2.3444856]
[1769902263438,1.00128787,2450.7,2450.0,4.0816]
[1769902263942,1.00128787,2450.7,2450.1,4.0816]
[1769902264344,0.20914348,2451.4,2450.0,2.36612105]
[1769902264545,0.20914348,2451.4,2450.3,4.0816]
[1769902265143,0.20914348,2451.4,2450.5,4.0816]
[1769902265339,0.20914348,2451.4,2450.4,4.0816]
[1769902265844,0.20914348,2451.4,2450.5,4.0816]
[1769902266039,0.20914348,2451.4,2450.4,4.0816]
[1769902266545,0.9067578,2451.3,2450.5,4.0816]
[1769902266734,0.9067578,2451.3,2450.3,4.0816]
[1769902266939,0.83113321,2450.8,2450.0,0.00427943]
[1769902267444,1.03540321,2450.8,2450.0,0.00427943]
[1769902268339,0.25234296,2450.3,2449.2,2.3444856]
[1769902268545,2.395,2451.2,2448.8,2.3444856]
[1769902268546,0.25234296,2449.8,2448.8,2.3444856]
[1769902268743,0.25234296,2449.7,2448.8,2.3444856]
[1769902268945,0.25234296,2449.7,2449.0,4.0816]
[1769902269340,0.25234296,2449.7,2449.0,0.00405887]
[1769902269543,0.20015056,2448.8,2448.2,4.68717543]
[1769902269744,0.20442,2449.0,2447.6,0.16101059]
[1769902269943,0.35076731,2448.1,2446.2,5.8046998]
[1769902270149,0.14627731,2448.1,2446.3,9.65296969]
[1769902270349,0.20446,2448.5,2447.0,3.52484584]
[1769902270645,0.14627731,2447.6,2447.0,0.00443173]
[1769902270844,0.14627731,2447.6,2445.9,3.675]
[1769902271044,0.14627731,2447.6,2446.0,9.65296969]
[1769902271248,0.20457,2447.2,2446.0,9.65296969]
[1769902271452,0.20451,2448.0,2446.3,3.52484584]
[1769902271648,0.20451,2448.0,2446.4,3.084]
[1769902271854,0.20451,2448.0,2446.8,0.15469738]
[1769902272046,0.20451,2448.0,2446.9,0.15469738]
[1769902272250,0.20451,2447.9,2446.9,0.15469738]
[1769902272451,0.20451,2447.9,2447.0,9.80766707]
[1769902272651,0.20451,2447.9,2447.0,13.33251291]
[1769902273054,0.20451,2447.9,2447.0,9.80766707]
[1769902273250,0.14627731,2447.8,2446.7,0.15469738]
[1769902273854,0.14627731,2447.8,2446.7,9.80766707]
[1769902274060,0.14627731,2447.8,2446.4,0.00388432]
[1769902274265,0.14627731,2447.8,2446.5,9.65296969]
[1769902274558,0.0032526,2448.5,2446.5,9.65296969]
[1769902274559,0.20455,2447.4,2446.5,9.65296969]
[1769902274761,0.20455,2447.4,2446.4,0.00388432]
[1769902275061,0.20455,2447.4,2446.4,9.65685401]
[1769902276455,0.14627731,2447.6,2446.5,0.15469738]
[1769902276656,0.20453,2447.7,2446.5,0.15469738]
[1769902276858,0.20453,2447.7,2446.7,0.15469738]
[1769902277258,0.14627731,2447.6,2446.4,0.00388432]
[1769902277453,0.20456,2447.3,2446.4,9.65685401]
[1769902277758,0.20456,2447.3,2446.4,9.81155139]
[1769902277959,0.20456,2447.3,2446.4,13.33639723]
[1769902278662,0.20456,2447.3,2446.4,9.81155139]
[1769902279065,0.20456,2447.3,2446.4,13.33639723]
[1769902279264,0.20456,2447.3,2446.4,9.81155139]
[1769902279460,0.35083731,2447.3,2446.4,0.00388432]
[1769902279964,0.20456,2447.3,2446.5,0.15469738]
[1769902280170,3.678,2447.9,2446.7,0.15469738]
[1769902280360,0.14627731,2447.5,2446.4,9.65685401]
[1769902280761,0.20453,2447.7,2446.6,0.15469738]
[1769902280962,0.20453,2447.6,2446.6,0.15469738]
[1769902281168,0.20453,2447.6,2446.7,9.65296969]
[1769902281766,0.20454,2447.5,2446.7,9.65296969]
[1769902282070,0.20455,2447.4,2446.6,0.15469738]
[1769902282270,0.20456,2447.3,2446.6,9.65296969]
[1769902282464,0.20457,2447.2,2446.4,0.00388432]
[1769902282673,3.678,2447.9,2446.4,9.65685401]
[1769902282674,0.20458,2447.1,2446.4,9.65685401]
[1769902282965,0.20458,2447.1,2446.4,9.81155139]
[1769902283270,0.20458,2447.1,2446.7,0.15469738]
[1769902283569,0.20458,2447.1,2446.8,3.52484584]
[1769902283772,0.20458,2447.1,2446.8,0.15469738]
[1769902283965,0.14627731,2448.0,2446.8,0.15469738]
[1769902284170,0.14627731,2448.0,2446.9,9.80766707]
[1769902284371,0.14627731,2448.0,2446.9,0.15469738]
[1769902284668,0.20454,2447.6,2447.0,9.65296969]
[1769902284865,0.14627731,2448.0,2447.0,9.65296969]
[1769902285061,0.20452,2447.8,2447.1,0.15469738]
[1769902285571,0.20452,2447.8,2447.2,9.80766707]
[1769902285770,0.20452,2447.8,2447.2,0.15469738]
[1769902285966,0.14627731,2448.2,2446.8,0.15469738]
[1769902286166,0.20453,2447.6,2446.8,0.15469738]
[1769902286471,0.20451,2447.9,2447.3,3.44548985]
[1769902286671,0.20451,2447.9,2447.1,0.15469738]
[1769902286969,0.20451,2447.9,2447.3,3.44548985]
[1769902287370,0.20451,2447.9,2447.4,3.44548985]
[1769902287769,0.20451,2447.9,2447.5,3.44548985]
[1769902287971,0.20452,2447.8,2447.4,9.65296969]
[1769902288572,0.20452,2447.8,2447.4,9.80766707]
[1769902288781,3.68,2448.3,2447.5,0.15469738]
[1769902288782,0.20448,2448.3,2447.5,0.15469738]
[1769902289072,0.20448,2448.3,2447.7,0.15469738]
[1769902289671,0.0032526,2448.5,2447.9,0.15469738]
[1769902289866,0.20443,2448.9,2447.9,0.15469738]
[1769902290072,0.20443,2448.9,2448.1,0.15469738]
[1769902290575,0.20443,2448.9,2448.3,0.15469738]
[1769902290776,0.20864113,2448.9,2448.3,0.15869669]
[1769902290976,0.20864113,2448.9,2448.5,0.15469738]
[1769902291177,0.14627731,2450.0,2448.5,0.15469738]
[1769902291476,0.14627731,2450.0,2448.7,0.15469738]
[1769902291673,0.20438,2449.5,2448.5,0.15469738]
[1769902291977,0.20438,2449.5,2448.7,0.15469738]
[1769902292172,0.20927529,2449.5,2448.7,0.15469738]
[1769902292371,0.20927529,2449.5,2448.8,9.65296969]
[1769902292572,0.1511726,2449.5,2448.3,0.15869669]
[1769902292772,0.14627731,2449.2,2448.3,0.00399931]
[1769902292973,0.20448,2448.2,2446.9,0.15469738]
[1769902293675,0.14627731,2448.4,2446.9,0.15469738]
[1769902293878,0.20452,2447.8,2446.9,0.15925528]
[1769902295476,0.20448,2448.3,2446.9,0.15925528]
[1769902296680,2.50788404,2449.7,2447.2,0.15469738]
[1769902296681,0.20444,2448.7,2447.2,0.15469738]
[1769902296877,0.20444,2448.7,2447.4,0.15469738]
[1769902297275,0.15742834,2448.9,2447.4,0.15469738]
[1769902297681,0.20443,2448.8,2447.4,0.15469738]
[1769902298579,0.20444,2448.7,2447.4,0.15469738]
[1769902299182,0.15742834,2448.9,2447.4,0.15469738]
[1769902299481,0.20447,2448.4,2447.4,7.72969738]
[1769902299682,0.15742834,2448.7,2447.5,0.11089877]
[1769902299882,0.20442,2448.9,2447.6,0.11089877]
[1769902300281,0.20442,2448.9,2447.1,6.0092698]
[1769902300282,0.15342903,2447.5,2446.9,7.9e-06]
[1769902300578,0.20458,2447.0,2446.9,7.9e-06]
[1769902300785,0.20458,2447.0,2446.9,7.62245838]
[1769902300984,0.08968192,2447.0,2445.5,0.20471]
[1769902301182,0.08968192,2447.0,2446.0,7.62245838]
[1769902301485,0.08968192,2447.0,2446.0,0.00614683]
[1769902301686,0.09477222,2447.0,2446.4,7.62245838]
[1769902302177,0.16102602,2446.9,2446.5,15.26351543]
[1769902302377,0.16102602,2446.9,2446.3,7.62245838]
[1769902302784,0.16102602,2446.9,2446.5,7.62245838]
[1769902302988,0.09477222,2447.0,2446.3,7.62245838]
[1769902303288,0.0050903,2447.0,2446.4,7.62245838]
[1769902303487,0.0050903,2447.0,2446.5,7.62245838]
[1769902303888,0.0050903,2447.0,2446.7,7.62245838]
[1769902304089,0.0050903,2447.0,2446.5,7.62245838]
[1769902304290,0.0050903,2447.0,2446.4,7.62245838]
[1769902304591,0.0050903,2447.0,2446.1,7.64105705]
[1769902304790,0.0050903,2447.0,2446.5,7.62245838]
[1769902304989,0.0050903,2447.0,2446.4,7.62245838]
[1769902305385,0.0050903,2447.0,2446.5,15.26351543]
[1769902305586,0.0050903,2447.0,2446.6,7.64105705]
[1769902305788,0.0050903,2447.0,2446.3,7.62245838]
[1769902306087,0.0050903,2447.0,2446.5,7.62245838]
[1769902306281,0.0050903,2447.0,2446.4,7.62245838]
[1769902306488,0.0050903,2447.0,2446.6,7.62245838]
[1769902306689,0.0050903,2447.0,2446.4,7.62245838]
[1769902307192,0.0050903,2447.0,2446.6,7.62245838]
[1769902307392,0.0050903,2447.0,2446.2,7.64105705]
[1769902307595,0.0050903,2447.0,2446.3,7.62245838]
[1769902307786,0.0050903,2447.0,2446.4,7.62245838]
[1769902308188,0.0050903,2447.0,2446.5,7.62245838]
[1769902308388,0.0050903,2447.0,2446.4,7.62245838]
[1769902308883,0.0050903,2447.0,2446.7,7.62245838]
[1769902309088,0.0050903,2447.0,2446.5,7.62245838]
[1769902309387,0.0050903,2447.0,2446.7,7.62245838]
[1769902309592,0.0050903,2447.0,2446.5,7.62245838]
[1769902309790,0.2096803,2447.0,2446.5,7.64105705]
[1769902309993,0.0050903,2447.0,2446.6,7.62245838]
[1769902310393,0.0050903,2447.0,2446.7,7.64105705]
[1769902310595,0.0050903,2447.0,2446.7,6.25105705]
[1769902310794,0.0050903,2447.0,2446.2,3.923]
[1769902310989,0.0050903,2447.0,2446.4,7.62245838]
[1769902311190,0.0050903,2447.0,2446.5,6.25105705]
[1769902311386,0.0050903,2447.0,2446.5,13.87351543]
[1769902311590,0.0050903,2447.0,2446.6,7.62245838]
[1769902311989,0.0050903,2447.0,2446.7,13.87351543]
[1769902312294,0.36599319,2447.7,2446.7,7.62245838]
[1769902312594,0.16147319,2447.6,2446.2,4.12765]
[1769902312794,0.16147319,2447.6,2446.4,7.62245838]
[1769902312991,0.16147319,2448.0,2446.8,7.62245838]
[1769902313287,0.16147319,2448.0,2446.3,6.25105705]
[1769902313288,0.20449,2448.2,2447.4,7.62245838]
[1769902313489,0.36591319,2448.7,2447.1,0.20457]
[1769902313797,0.36591319,2448.7,2447.1,7.82702838]
[1769902313994,0.36582058,2448.3,2447.2,10.18205705]
[1769902314289,0.20935004,2448.3,2447.2,17.80451543]
[1769902314494,0.20935004,2448.3,2447.5,7.62245838]
[1769902314791,0.20935004,2448.3,2447.6,6.25105705]